Cogmind - Beta 13 @@@ ROGUE MODE // 2024.04.13 @ 22:55:08 Player: Naiya55 Result: Destroyed by D-53 Grenadier with Mini Grenade Launcher Performance ------------- Evolutions (0) 0 Regions Visited (2) 400 Robots Destroyed (13) 65 Value Destroyed (173) 173 Prototype IDs (0) 0 Alien Tech Used (0) 0 Bonus (0) 0 TOTAL SCORE: 638 Bonus ------- None Cogmind --------- Core Integrity 0/250 Matter 300/300 Energy 100/100 System Corruption 0% Temperature Cool (0) Movement Core (350) Ox6 Location -10/Mines Parts ------- > --- POWER (1) -------- (None) > --- PROPULSION (2) --- (None) > --- UTILITY (2) ------ Large Storage Unit > --- WEAPON (2) ------- (None) > --- INVENTORY (15) --- Light Ion Engine Light Ion Engine Light Ion Engine Flight Unit Flight Unit Flight Unit ECM Suite ECM Suite Medium Laser Particle Cannon Assault Rifle Light Assault Rifle Light Assault Rifle Grenade Launcher Grenade Launcher Peak State ------------ > --- POWER ------------ Light Ion Engine > --- PROPULSION ------- Light Treads Light Treads > --- UTILITY ---------- Medium Storage Unit ECM Suite > --- WEAPON ----------- EM Pulse Gun Assault Rifle > --- INVENTORY -------- Light Ion Engine Wheel Compact Wheel ECM Suite ECM Suite Medium Laser Particle Cannon Assault Rifle Light Assault Rifle Grenade Launcher [Rating: 8] Favorites ----------- Power Light Ion Engine Engine Light Ion Engine Propulsion Light Treads Treads Light Treads Utility ECM Suite Device ECM Suite Storage Large Storage Unit Weapon Assault Rifle Energy Gun EM Pulse Gun Ballistic Gun Assault Rifle Build | -11 -10 -10 ------- Run | Yrd Mat Min Slots Evolved . | . . . Power . | . . . Propulsion . | . . . Utility . | . . . Weapon . | . . . Parts Attached 10 | 6 3 1 Power 1 | 1 . . Engine 1 | 1 . . Core . | . . . Reactor . | . . . Propulsion 2 | 2 . . Treads 2 | 2 . . Leg . | . . . Wheel . | . . . Hover . | . . . Flight . | . . . Utility 4 | 1 3 . Device 1 | . 1 . Storage 3 | 1 2 . Processor . | . . . Hackware . | . . . Protection . | . . . Artifact . | . . . Weapon 3 | 2 . 1 Energy Gun 1 | 1 . . Energy Cannon . | . . . Ballistic Gun 2 | 1 . 1 Ballistic Cannon . | . . . Launcher . | . . . Special Weapon . | . . . Impact Weapon . | . . . Slashing Weapon . | . . . Piercing Weapon . | . . . Special Melee Weapon . | . . . Unidentified Prototypes . | . . . Parts Lost 7 | . . 7 Power 1 | . . 1 Propulsion 2 | . . 2 Utility 1 | . . 1 Weapon 3 | . . 3 Highest Loss Streak 6 | . . 6 To Critical Strikes . | . . . Average Slot Usage (%) 98 | . 98 95 Engine 13 | . 14 12 Treads 27 | . 28 26 Device 12 | . 12 13 Storage 14 | . 14 14 Energy Gun 11 | . 14 . Ballistic Gun 16 | . 14 26 Naked Turns . | . . . Heaviest Build 29 | 12 29 28 Greatest Support 40 | 40 40 40 Greatest Overweight (x) . | . . . Average Overweight (x) . | . . . Largest Inventory Capacity 15 | 8 15 15 Average Capacity 12 | 6 11 15 Most Carried 15 | 4 11 15 Average Carried 9 | 1 8 14 Final Capacity 15 | 8 15 15 Final Carried 15 | 4 11 15 Class Distribution -------------------- 100% | Mutant Dominant Class ---------------- Mutant | -10/Materials Mutant | -10/Mines Resources | -11 -10 -10 ----------- Run | Yrd Mat Min Matter Collected 340 | 214 105 21 Remotely . | . . . Salvage Created 231 | . 189 42 Parts 29 | . 22 7 Haulers Intercepted . | . . . Recyclers Shooed . | . . . Parts Field Recycled . | . . . Retrieved Matter . | . . . Parts Self-Destructed . | . . . Prevented . | . . . Kills | -11 -10 -10 ------- Run | Yrd Mat Min Combat Hostiles Destroyed 10 | . 7 3 Guns 9 | . 6 3 AOE 1 | . 1 . Classes Destroyed 4 | . 4 . Tunneler 1 | . 1 . Watcher 2 | . 2 . Swarmer 9 | . 6 3 Grunt 1 | . 1 . Best Kill Streak 3 | . 2 3 Combat Bots Only 3 | . 2 3 Max Kills in Single Turn 2 | . 2 1 Gunslinging . | . . . Exploded 1 | . 1 . Melee . | . . . Uniques/NPCs Destroyed . | . . . Combat | -11 -10 -10 -------- Run | Yrd Mat Min Hostile Shots Fired 41 | . 18 23 Missed 10 | . 9 1 Damage Taken 860 | . 106 754 Core 256 | . . 256 Absorbed by Shields . | . . . Regen/Repaired (Parts) 16 | . 16 . Core Remaining (%) 100 | 100 . . Volleys Fired 16 | . 12 4 Largest 2 | . 2 2 Hottest 60 | . 60 60 Shots Fired 31 | . 24 7 Gun 31 | . 24 7 Cannon . | . . . Launcher . | . . . Special . | . . . Kinetic 18 | . 12 6 Thermal . | . . . Explosive . | . . . Electromagnetic 13 | . 12 1 Robot Hit Streak 4 | . 4 1 Robot Miss Streak 2 | . 2 2 Penetration Max . | . . . Secondary Targets . | . . . Shots Hit Robots 16 | . 14 2 Core Hits 13 | . 10 3 Critical Kills . | . . . Critical Parts Destroyed . | . . . Critical Strikes . | . . . Melee Attacks . | . . . Impact . | . . . Slashing . | . . . Piercing . | . . . Sneak Attacks . | . . . Combat Hostiles . | . . . Follow-up Attacks . | . . . Damage Inflicted 275 | . 232 43 Guns 216 | . 173 43 Cannons . | . . . Explosions 57 | . 57 . Melee . | . . . Ramming 2 | . 2 . Kinetic 130 | . 87 43 Thermal 57 | . 57 . Explosive . | . . . Electromagnetic 86 | . 86 . Impact . | . . . Slashing . | . . . Piercing . | . . . Highest Corruption . | . . . Average Corruption . | . . . Corruption Purged . | . . . Corruption Blocked . | . . . Overload Shots . | . . . Overflow Damage . | . . . Projectiles . | . . . Explosions . | . . . Melee . | . . . Knockbacks . | . . . Impact . | . . . Kinetic . | . . . Secondary . | . . . Self-Inflicted Damage 30 | . 30 . Shots 1 | . 1 . Rammed 2 | . 2 . Targets Rammed 3 | . 3 . Kicked . | . . . Crushed 1 | . 1 . Highest Temperature 12 | . 12 . Average Temperature 11 | . 11 . Received Heat Transfer 12 | . 12 . Siege Activations . | . . . Robots Corrupted . | . . . Combat Hostiles . | . . . Parts Fried . | . . . Impact Corruptions . | . . . Robots Melted . | . . . Combat Hostiles . | . . . Parts Melted . | . . . Heat Transferred . | . . . Parts Sabotaged . | . . . Parts Stolen . | . . . Parts Stripped . | . . . Power Chain Reactions 1 | . 1 . Alert | -11 -10 -10 ------- Run | Yrd Mat Min Peak Influence 203 | . 203 80 Initial 20 | . . 20 Average 80 | . 88 76 Maximum Alert Level 1 | . 1 . Low Security (%) 98 | 100 97 100 Level 1 1 | . 2 . Level 2 . | . . . Level 3 . | . . . Level 4 . | . . . Level 5 . | . . . High Security . | . . . Max Security . | . . . Squads Dispatched 1 | . 1 . Investigation . | . . . Extermination . | . . . Reinforcement 1 | . 1 . Assault . | . . . Garrison . | . . . Intercept . | . . . Searches Triggered . | . . . Construction Impeded . | . . . Haulers Reinforced . | . . . Active Scanning Responses . | . . . Cargo Convoy Interrupts . | . . . Stealth | -11 -10 -10 --------- Run | Yrd Mat Min Distress Signals 3 | . 3 . Communications Jammed . | . . . Distress Signals . | . . . Times Spotted 27 | . 23 4 Peak Tracking Total 4 | . 4 2 Tactical Retreats 6 | . 6 . Traps | -11 -10 -10 ------- Run | Yrd Mat Min Traps Triggered . | . . . Indirectly . | . . . Trap Hack Attempts . | . . . Triggered . | . . . Disarmed . | . . . Reprogrammed . | . . . Reused . | . . . Traps Extracted . | . . . Installed . | . . . Triggered . | . . . Machines | -11 -10 -10 ---------- Run | Yrd Mat Min Machines Disabled 1 | . 1 . Max in Single Turn 1 | . 1 . Machines Repaired . | . . . Machines Dismantled . | . . . Machines Sabotaged . | . . . Overloaded Fab Kills . | . . . Hacking | -11 -10 -10 --------- Run | Yrd Mat Min Machines Accessed 4 | . 4 . Terminals 3 | . 3 . Fabricators . | . . . Repair Stations 1 | . 1 . Recycling Units . | . . . Scanalyzers . | . . . Garrison Access . | . . . Total Hacks 8 | . 8 . Successful 5 | . 5 . Failed 3 | . 3 . Catastrophic . | . . . Database Lockouts . | . . . Manual 5 | . 5 . Terminals 6 | . 6 . Fabricators . | . . . Repair Stations 2 | . 2 . Recycling Units . | . . . Scanalyzers . | . . . Garrison Access . | . . . Terminal Hacks 3 | . 3 . Robot Analysis 3 | . 3 . Fabricator Hacks . | . . . Repair Station Hacks 2 | . 2 . Scan Component 1 | . 1 . Repair 1 | . 1 . Recycling Unit Hacks . | . . . Scanalyzer . | . . . Garrison Access Hacks . | . . . Unauthorized Hacks . | . . . Terminals . | . . . Fabricators . | . . . Repair Stations . | . . . Recycling Units . | . . . Scanalyzers . | . . . Garrison Access . | . . . Data Cores Recovered . | . . . Used . | . . . Hacking Detections 4 | . 4 . Full Trace Events . | . . . Feedback Events . | . . . Feedback Blocked . | . . . Robot Schematics Acquired . | . . . Robots Built . | . . . Authchips . | . . . Time . | . . . Total Robot Build Rating . | . . . Part Schematics Acquired . | . . . Parts Built . | . . . Authchips . | . . . Time . | . . . Total Part Build Rating . | . . . Parts Repaired 1 | . 1 . Time 26 | . 26 . Parts Recycled . | . . . Recycled Matter . | . . . Retrieved Matter . | . . . Retrieved Components . | . . . Parts Scanalyzed . | . . . Part Schematics Acquired . | . . . Parts Damaged . | . . . Bothacking | -11 -10 -10 ------------ Run | Yrd Mat Min Used RIF Installer . | . . . Robots Hacked . | . . . Non-combat . | . . . Combat . | . . . Robot Hacks Applied . | . . . Relay Couplers Released . | . . . Fabnet Peak Effective % . | . . . Robots Rewired . | . . . Allies Hacked . | . . . Hacks Repelled . | . . . Allies | -11 -10 -10 -------- Run | Yrd Mat Min Total Allies . | . . . Largest Group . | . . . Highest-Rated Group . | . . . Highest-Rated Ally . | . . . Total Orders . | . . . Ally Attacks . | . . . Total Damage . | . . . Kills . | . . . Allies Corrupted . | . . . Allies Melted . | . . . Intel | -11 -10 -10 ------- Run | Yrd Mat Min Robot Analysis Total 3 | . 3 . Derelict Logs Recovered . | . . . Drone Launches . | . . . Drone Recoveries . | . . . Exploration | -11 -10 -10 ------------- Run | Yrd Mat Min Turns Passed 1303 | 88 974 241 Spaces Moved 710 | 49 530 131 Core 2 | 2 . . Treads 708 | 47 530 131 Legs . | . . . Wheels . | . . . Hover . | . . . Flight . | . . . Fastest Speed 50 | 50 160 160 Average Speed 159 | 155 160 160 Slowest Speed 160 | 160 160 160 Overloaded Moves . | . . . Propulsion Burnouts . | . . . Robots Hopped . | . . . Cave-ins Triggered . | . . . Exploration Rate (%) 34 | 4 75 24 Regions Visited 2 Branch Regions 1 Pre-discovered Areas . | . . . Known Exits Taken . | . . . Unknown Exits Taken 2 | 1 1 . Scrap Searched . | . . . Spaces Dug . | . . . Terrain Destroyed 1 | . 1 . Melee . | . . . Projectile . | . . . AOE 1 | . 1 . Terrain Rammed . | . . . Walls Destroyed . | . . . Machines Disabled . | . . . Actions | -11 -10 -10 --------- Run | Yrd Mat Min Total 846 | 58 632 156 Wait 79 | . 66 13 Move 708 | 48 529 131 Hop . | . . . Pick Up 24 | 4 14 6 Fast Attach 6 | 6 . . Attach 2 | . 1 1 Detach . | . . . Swap 2 | . 2 . Drop 6 | . 5 1 Fire 16 | . 12 4 Melee . | . . . Ram . | . . . Kick . | . . . Crush 3 | . 3 . Escape Stasis . | . . . Rewire . | . . . Trap . | . . . Miscellaneous . | . . . Route ------- -11/Scrapyard -10/Materials (discovered 3 exits: [*Mat x2] / [*Min]) -10/Mines History --------- Turn | Location | Event 33 | -11/Scrapyard | Discovered new exit (range 15) 89 | -11/Scrapyard | Entered Materials 157 | -10/Materials | Repaired ECM Suite 315 | -10/Materials | Build established: Mutant 658 | -10/Materials | Discovered new exit (range 16) 904 | -10/Materials | Discovered new exit (range 16) 1004 | -10/Materials | Discovered new exit (range 9) 1063 | -10/Materials | Entered Mines 1151 | -10/Mines | Assembled infested the area 1156 | -10/Mines | Assisted by a Guerilla fighting off Assembled 1300 | -10/Mines | Core integrity fell below 50% 1304 | -10/Mines | Destroyed by D-53 Grenadier with Mini Grenade Launcher Last Messages --------------- 01096_ Dropped Com. Wheel. 01096_ Acquired 6 matter. 01106_ Acquired Flight Unit. 01151_ ALERT: Infestation in the mines, dispatching Demolisher response squad. 01156_ A derelict emerges from the shadows: "You need to get out of here! I've been tracking a group of Assembled to figure out where they're coming from, and they're closing on this area, come on!" 01173_ CV-RW3(h): "I'll hold them off! Go on ahead or try to find another way!" 01286_ Lgt. Ion Engine destroyed. 01289_ The unstable cave ceiling collapses. 01291_ Assault Rifle destroyed. 01293_ Lgt. Treads destroyed. 01299_ ECM Suite destroyed. 01299_ Lgt. Treads destroyed. 01299_ Lgt. Assault Rifle destroyed. 01303_ The unstable cave ceiling collapses. Map ----- +----------------------------------------------------+ | ?????????# #######????????????????? | | ?????????# #????????????????? | | ?????????# ###### #????????????????? | | ?????????## ###????# #????????????????? | | ??????????######??????# #????????????????? | | ??????????????????????# #????????????????? | | ??????????????????????# #????????????????? | | ??????????????????????# #????????????????? | | ??????????????????????# ##???????????????? | | ??????????????????????# ##??????????????? | | ??????????????????????# ###????????????? | | ??????????????????????# ##???? ??????? | | ??????????????????????# #???? ??????? | | ??????????????????????# #??? #??????? | | ?????????????????????## #??? ???????? | | ???????????????????### #?? ???????? | | ??????????????????## % ##??]#???????? | | ??????????????????# ##??? ##??????? | | ?????????????????## % #??? ##?????? | | ?????????????????# #??? #?????? | | ?????????????????# ##?# #?????? | | ?????????????????# ## [ #?????? | | ?????????????????## #?????? | | ??????????????#???## d #?????? | | ?????? ???????# ???## #??????? | | ?????? !??????# ????# @ d ####??????? | | ??????# ????# ##### #?????????? | | ???????# ??## #?????????? | | ????????# ## #?????????? | | ????????# #?????????? | | ????????## ##?????????? | | ?????????# ## ###??????????? | | ?????????# #####????????????? | | ?????????# % #????????????????? | | ????????# ##????????????????? | | ????? ##?????????????????? | | ????###### = ####??????????????????? | | ?????????## ##?????????????????????? | | ??????????## ???????????????????????? | | ???????????#### !#???????????????????????? | | ??????????????###????????????????????????? | | ?????????????????????????????????????????? | | ?????????????????????????????????????????? | | | | | | | | | | | | | | | +----------------------------------------------------+ Best States ------------- Heat Dissipation 25 Energy Generation 10 Energy Capacity 125 Matter Stores 300 Matter Capacity 300 Sight Range 16 Terrain Scan Density 10 ECM Strength 1 Evasion (%) 40 Recoil Reduction 2 Item Schematics ----------------- None Robot Schematics ------------------ None Fabricated ------------ Nothing Alien Tech Used ----------------- None Achievements -------------- None Challenges ------------ None Game ------ Seed CloakingImpulseMultirail Manual? 0 Play Time 00:10:20 Cumulative 6.1 hours Start 2024.04.13 @ 22:46:20 End 2024.04.13 @ 22:55:08 Sessions 1 Manual Loads 0 Difficulty Rogue Special Mode None Game No. 18 Rogue 18 Adventurer 0 Explorer 0 Win Type - Total 0 Types 0/0/0/0/0/0/0/0/0 Lore% 16 Gallery% 8 Achievement% 11 Wizard Run 0 Options --------- Layout 1 ASCII 0 Keyboard 0 Movement Vi Keybinds 0 Fullscreen 2 Font 24/Smallcaps Map View 50x35 Zoom Use 0% Tactical HUD 1 Map Filters NONE Filters NONE Steam 1 RUN: e7b1af6a-ffa6-459c-ab0b-453f00090965